[Event "47th GRE-chT 2019"]
[Site "Patra"]
[Date "2019.07.05"]
[Round "5.24"]
[White "Liodakis, Konstantinos-Spyros"]
[Black "Nikolaou, Georgios"]
[Result "1-0"]
[ECO "B48"]
[WhiteElo "2212"]
[BlackElo "2202"]
[Annotator "RC"]
[PlyCount "51"]
[EventDate "2019.07.02"]
[EventCountry "GRE"]
[SourceTitle "playchess.com"]
[Source "ChessBase"]
[SourceQuality "1"]
[TimeControl "5400+30"]

1. e4 {[%emt 0:02:35]} c5 {[%emt 0:00:00]} 2. Nf3 {[%emt 0:00:10]} e6 {[%emt 0:00:00]} 3. d4 {[%emt 0:00:06]} cxd4 {[%emt 0:00:00]} 4. Nxd4 {[%emt 0:00:14]} Nc6 {[%emt 0:00:00]} 5. Nc3 {[%emt 0:00:10]} Qc7 {[%emt 0:00:00]} 6. Be3 {[%emt 0:00:14]} Nf6 {[%emt 0:05:47]} 7. Qf3 {[%emt 0:15:22]} Ne5 {[%emt 0:02:04]} 8. Qg3 {[%emt 0:07:45]} a6 {[%emt 0:00:28]} 9. O-O-O {[%emt 0:05:50]} h5 {[%emt 0:09:46]} 10. f4 {[%emt 0:12:43]} Nc4 {[%emt 0:00:52]} 11. Bxc4 {[%emt 0:00:02]} Qxc4 {[%emt 0:09:08]} 12. Rhe1 {[%emt 0:04:57]} b5 {[%emt 0:07:16]} 13. Bg1 {[%emt 0:05:37]} Bb7 {[%emt 0:06:52]} 14. Nf5 {[%emt 0:17:23]} O-O-O {[%emt 0:05:01]} 15. Nd6+ {[%emt 0:00:09]} Bxd6 {[%emt 0:00:05]} 16. Rxd6 {[%emt 0:17:56]} Qb4 {[%emt 0:03:46]} 17. Rd4 {[%emt 0:02:01]} Qe7 {[%emt 0:00:29]} 18. e5 {[%emt 0:01:18]} Ne8 {[%emt 0:01:18]} 19. a4 {[%emt 0:04:17]} Nc7 {[%emt 0:01:16]} 20. axb5 {[%emt 0:00:01]} axb5 {[%emt 0:01:08]} 21. Qd3 {[%emt 0:00:20]} Bc6 {[%emt 0:03:17]} 22. Rd6 {[%emt 0:01:17]} Kb7 {[%emt 0:04:54]} 23. Qd4 {[%emt 0:00:01]} Ra8 {[%emt 0:06:39]} 24. Ne4 {[%emt 0:00:25]} Ra1+ {[%emt 0:00:00]} 25. Kd2 {[%emt 0:00:17]} Rha8 {[%emt 0:00:39]} 26. Rxc6 {[%emt 0:01:50]} 1-0

[Event "47th GRE-chT 2019"]
[Site "Patra"]
[Date "2019.07.05"]
[Round "5.25"]
[White "Hristodoulaki, Antonia"]
[Black "Antova, Gabriela"]
[Result "1-0"]
[ECO "C42"]
[WhiteElo "2033"]
[BlackElo "2257"]
[Annotator "NA"]
[PlyCount "195"]
[EventDate "2019.07.02"]
[EventCountry "GRE"]
[SourceTitle "playchess.com"]
[Source "ChessBase"]
[SourceQuality "1"]
[TimeControl "5400+30"]

1. e4 {[%emt 0:00:00]} e5 {[%emt 0:00:00]} 2. Nf3 {[%emt 0:00:05]} Nf6 {[%emt 0:00:00]} 3. Nxe5 {[%emt 0:00:09]} d6 {[%emt 0:00:06]} 4. Nf3 {[%emt 0:00:02]} Nxe4 {[%emt 0:00:11]} 5. Qe2 {[%emt 0:00:07]} Qe7 {[%emt 0:00:48]} 6. Nc3 {[%emt 0:00:09]} Nxc3 {[%emt 0:07:26]} 7. Qxe7+ {[%emt 0:00:36]} Bxe7 {[%emt 0:00:10]} 8. dxc3 {[%emt 0:00:04]} c5 {[%emt 0:16:02]} 9. Bf4 {[%emt 0:12:14]} d5 {[%emt 0:06:21]} 10. Bb5+ {[%emt 0:01:45]} Kf8 {[%emt 0:09:22]} 11. O-O-O {[%emt 0:04:48]} a6 {[%emt 0:02:18]} 12. Be2 {[%emt 0:02:01]} Be6 {[%emt 0:00:21]} 13. Ng5 {[%emt 0:05:18]} Nc6 {[%emt 0:05:13]} 14. Bf3 {[%emt 0:01:33]} Bxg5 {[%emt 0:08:26]} 15. Bxg5 {[%emt 0:00:34]} f6 {[%emt 0:00:31]} 16. Be3 {[%emt 0:01:52]} d4 {[%emt 0:03:22]} 17. cxd4 {[%emt 0:00:21]} cxd4 {[%emt 0:00:04]} 18. Bxd4 {[%emt 0:00:14]} Kf7 {[%emt 0:00:52]} 19. Bc3 {[%emt 0:17:59]} Rhe8 {[%emt 0:04:17]} 20. Bh5+ {[%emt 0:08:47]} g6 {[%emt 0:00:02]} 21. Bf3 {[%emt 0:00:07]} Rac8 {[%emt 0:09:36]} 22. Rd6 {[%emt 0:15:48]} Rc7 {[%emt 0:05:19]} 23. Rhd1 {[%emt 0:07:09]} Ke7 {[%emt 0:04:22]} 24. a3 {[%emt 0:03:19]} Rec8 {[%emt 0:03:02]} 25. R6d2 {[%emt 0:00:59]} Kf7 {[%emt 0:00:52]} 26. Re1 {[%emt 0:02:23]} h5 {[%emt 0:08:39]} 27. Be4 {[%emt 0:05:09]} Re7 {[%emt 0:04:00]} 28. Rd6 {[%emt 0:01:41]} Rd8 {[%emt 0:00:00]} 29. Bxg6+ {[%emt 0:00:46]} Kxg6 {[%emt 0:00:00]} 30. Rdxe6 {[%emt 0:00:13]} Rxe6 {[%emt 0:01:35]} 31. Rxe6 {[%emt 0:00:02]} Rf8 {[%emt 0:00:01]} 32. Kd2 {[%emt 0:02:03]} Kf5 {[%emt 0:00:08]} 33. Rd6 {[%emt 0:00:45]} Rf7 {[%emt 0:00:28]} 34. Ke3 {[%emt 0:01:35]} Ne5 {[%emt 0:02:02]} 35. Bxe5 {[%emt 0:00:46]} Kxe5 {[%emt 0:00:23]} 36. Rd8 {[%emt 0:00:43]} Kf5 {[%emt 0:00:42]} 37. Rh8 {[%emt 0:01:58]} Re7+ {[%emt 0:00:25]} 38. Kf3 {[%emt 0:01:02]} Kg6 {[%emt 0:00:21]} 39. Rc8 {[%emt 0:00:51]} Rd7 {[%emt 0:01:07]} 40. Rc5 {[%emt 0:00:00]} Re7 {[%emt 0:00:00]} 41. b4 {[%emt 0:00:00]} Re1 {[%emt 0:00:00]} 42. a4 {[%emt 0:00:00]} Rb1 {[%emt 0:00:00]} 43. c3 {[%emt 0:00:00]} b6 {[%emt 0:00:00]} 44. Rc6 {[%emt 0:00:00]} Rb3 {[%emt 0:00:00]} 45. Ke4 {[%emt 0:00:00]} h4 {[%emt 0:00:00]} 46. Rxb6 {[%emt 0:00:00]} Rxc3 {[%emt 0:00:00]} 47. a5 {[%emt 0:00:00]} Rb3 {[%emt 0:01:25]} 48. Rxa6 {[%emt 0:05:29]} Rxb4+ {[%emt 0:00:06]} 49. Kf3 {[%emt 0:01:03]} Ra4 {[%emt 0:01:58]} 50. h3 {[%emt 0:01:32]} Kf5 {[%emt 0:00:30]} 51. g3 {[%emt 0:00:40]} Ra3+ {[%emt 0:01:04]} 52. Kg2 {[%emt 0:00:01]} Ra4 {[%emt 0:01:01]} 53. gxh4 {[%emt 0:01:00]} Rxh4 {[%emt 0:00:06]} 54. Kg3 {[%emt 0:00:33]} Ra4 {[%emt 0:00:06]} 55. Ra8 {[%emt 0:00:15]} Kg6 {[%emt 0:00:21]} 56. a6 {[%emt 0:00:20]} Kg7 {[%emt 0:00:17]} 57. a7 {[%emt 0:00:14]} Kh7 {[%emt 0:00:30]} 58. h4 {[%emt 0:00:11]} Kg7 {[%emt 0:00:26]} 59. h5 {[%emt 0:00:59]} Kh7 {[%emt 0:00:05]} 60. Kf3 {[%emt 0:01:08]} Kg7 {[%emt 0:00:25]} 61. h6+ {[%emt 0:00:30]} Kh7 {[%emt 0:00:01]} 62. Ke3 {[%emt 0:00:14]} Ra1 {[%emt 0:01:40]} 63. Kf4 {[%emt 0:00:17]} Ra5 {[%emt 0:00:14]} 64. Kg4 {[%emt 0:00:54]} Rg5+ {[%emt 0:00:19]} 65. Kf4 {[%emt 0:00:12]} Ra5 {[%emt 0:00:01]} 66. Ke4 {[%emt 0:00:05]} Re5+ {[%emt 0:00:13]} 67. Kd4 {[%emt 0:00:11]} Ra5 {[%emt 0:00:05]} 68. Kc4 {[%emt 0:00:43]} Ra1 {[%emt 0:01:55]} 69. Kb5 {[%emt 0:00:33]} Ra2 {[%emt 0:00:20]} 70. Kb6 {[%emt 0:00:57]} Rb2+ {[%emt 0:00:07]} 71. Kc6 {[%emt 0:00:15]} Ra2 {[%emt 0:00:07]} 72. Kd6 {[%emt 0:00:07]} Ra1 {[%emt 0:00:40]} 73. f4 {[%emt 0:00:35]} Ra6+ {[%emt 0:01:40]} 74. Ke7 {[%emt 0:01:10]} f5 {[%emt 0:01:47]} 75. Kf7 {[%emt 0:00:11]} Ra4 {[%emt 0:00:10]} 76. Kf6 {[%emt 0:00:30]} Ra5 {[%emt 0:00:01]} 77. Ke6 {[%emt 0:00:15]} Ra6+ {[%emt 0:01:10]} 78. Kxf5 {[%emt 0:00:06]} Ra5+ {[%emt 0:00:04]} 79. Kf6 {[%emt 0:00:35]} Ra6+ {[%emt 0:00:33]} 80. Kg5 {[%emt 0:00:54]} Rg6+ {[%emt 0:00:11]} 81. Kf5 {[%emt 0:00:09]} Ra6 {[%emt 0:00:04]} 82. Ke5 {[%emt 0:00:07]} Ra5+ {[%emt 0:00:16]} 83. Kd6 {[%emt 0:00:09]} Ra6+ {[%emt 0:00:49]} 84. Ke7 {[%emt 0:00:43]} Ra1 {[%emt 0:00:20]} 85. f5 {[%emt 0:00:13]} Re1+ {[%emt 0:00:17]} 86. Kf6 {[%emt 0:00:19]} Ra1 {[%emt 0:00:13]} 87. Re8 {[%emt 0:02:11]} Ra6+ {[%emt 0:01:05]} 88. Re6 {[%emt 0:00:07]} Ra5 {[%emt 0:00:38]} 89. Re7+ {[%emt 0:00:31]} Kxh6 {[%emt 0:00:09]} 90. Ke6 {[%emt 0:00:28]} Ra6+ {[%emt 0:00:17]} 91. Ke5 {[%emt 0:00:52]} Ra5+ {[%emt 0:00:06]} 92. Kd6 {[%emt 0:00:54]} Kg5 {[%emt 0:02:09]} 93. Rf7 {[%emt 0:00:05]} Ra1 {[%emt 0:00:52]} 94. Kc6 {[%emt 0:00:24]} Rc1+ {[%emt 0:00:19]} 95. Kb7 {[%emt 0:00:14]} Rb1+ {[%emt 0:00:01]} 96. Kc8 {[%emt 0:00:15]} Rc1+ {[%emt 0:00:30]} 97. Kb8 {[%emt 0:00:07]} Rb1+ {[%emt 0:00:04]} 98. Rb7 {[%emt 0:00:08]} 1-0

[Event "47th GRE-chT 2019"]
[Site "Patra"]
[Date "2019.07.05"]
[Round "5.26"]
[White "Vozinaki, Anthi - Maria"]
[Black "Chrysogelou, Athanasia-Panagiota"]
[Result "1-0"]
[ECO "B94"]
[WhiteElo "2054"]
[BlackElo "1770"]
[Annotator "NA RC"]
[PlyCount "83"]
[EventDate "2019.07.02"]
[EventCountry "GRE"]
[SourceTitle "playchess.com"]
[Source "ChessBase"]
[SourceQuality "1"]
[TimeControl "5400+30"]

1. e4 {[%emt 0:00:00]} c5 {[%emt 0:00:38]} 2. Nf3 {[%emt 0:00:00]} d6 {[%emt 0:00:15]} 3. d4 {[%emt 0:00:06]} cxd4 {[%emt 0:00:21]} 4. Nxd4 {[%emt 0:00:25]} Nf6 {[%emt 0:00:08]} 5. Nc3 {[%emt 0:00:11]} a6 {[%emt 0:01:02]} 6. Bg5 {[%emt 0:01:24]} Nbd7 {[%emt 0:05:32]} 7. f4 {[%emt 0:02:05]} Qc7 {[%emt 0:01:41]} 8. Qf3 {[%emt 0:02:42]} b5 {[%emt 0:07:27]} 9. O-O-O {[%emt 0:03:03]} Bb7 {[%emt 0:07:20]} 10. Bd3 {[%emt 0:05:47]} g6 {[%emt 0:10:18]} 11. Rhe1 {[%emt 0:02:29]} Bg7 {[%emt 0:09:47]} 12. Nd5 {[%emt 0:06:11]} Nxd5 {[%emt 0:00:21]} 13. exd5 {[%emt 0:07:57]} Nf6 {[%emt 0:08:28]} 14. Nc6 {[%emt 0:05:51]} Bxc6 {[%emt 0:00:15]} 15. dxc6 {[%emt 0:00:33]} O-O {[%emt 0:05:51]} 16. f5 {[%emt 0:08:07]} Rae8 {[%emt 0:03:50]} 17. h4 {[%emt 0:16:16]} d5 {[%emt 0:05:27]} 18. fxg6 {[%emt 0:03:03]} hxg6 {[%emt 0:04:58]} 19. Bxf6 {[%emt 0:02:30]} Bxf6 {[%emt 0:06:49]} 20. h5 {[%emt 0:12:14]} g5 {[%emt 0:06:07]} 21. Qxd5 {[%emt 0:01:59]} Qf4+ {[%emt 0:00:34]} 22. Kb1 {[%emt 0:01:47]} e6 {[%emt 0:04:22]} 23. Qc5 {[%emt 0:04:44]} Rc8 {[%emt 0:02:12]} 24. Be4 {[%emt 0:03:31]} Bg7 {[%emt 0:04:29]} 25. g3 {[%emt 0:02:48]} Qf6 {[%emt 0:00:16]} 26. c3 {[%emt 0:02:27]} Rfd8 {[%emt 0:02:23]} 27. c7 {[%emt 0:02:29]} Rxd1+ {[%emt 0:00:05]} 28. Rxd1 {[%emt 0:00:20]} Bf8 {[%emt 0:02:19]} 29. Qc6 {[%emt 0:01:56]} Qe7 {[%emt 0:00:38]} 30. Rd7 {[%emt 0:00:24]} Qe8 {[%emt 0:00:31]} 31. a3 {[%emt 0:01:35]} Be7 {[%emt 0:00:33]} 32. h6 {[%emt 0:00:25]} Kh8 {[%emt 0:00:27]} 33. Ka2 {[%emt 0:00:10]} Bf8 {[%emt 0:00:29]} 34. h7 {[%emt 0:00:30]} Be7 {[%emt 0:00:25]} 35. g4 {[%emt 0:00:30]} Kg7 {[%emt 0:00:35]} 36. a4 {[%emt 0:00:43]} b4 {[%emt 0:00:31]} 37. cxb4 {[%emt 0:00:19]} Bxb4 {[%emt 0:00:32]} 38. Kb3 {[%emt 0:00:25]} a5 {[%emt 0:00:29]} 39. Qb5 {[%emt 0:00:20]} Be7 {[%emt 0:00:00]} 40. Bb7 {[%emt 0:00:00]} Bf6 {[%emt 0:00:00]} 41. Bxc8 {[%emt 0:00:00]} Qxc8 {[%emt 0:00:00]} 42. Qb8 {[%emt 0:00:00]} 1-0

[Event "47th GRE-chT 2019"]
[Site "Patra"]
[Date "2019.07.05"]
[Round "5.27"]
[White "Kiousi, Panagiota"]
[Black "Karavitaki, Evaggelia"]
[Result "0-1"]
[ECO "E11"]
[WhiteElo "1895"]
[BlackElo "1681"]
[Annotator "NA RC"]
[PlyCount "82"]
[EventDate "2019.07.02"]
[EventCountry "GRE"]
[SourceTitle "playchess.com"]
[Source "ChessBase"]
[SourceQuality "1"]
[TimeControl "5400+30"]

1. d4 {[%emt 0:00:00]} Nf6 {[%emt 0:00:00]} 2. c4 {[%emt 0:00:00]} e6 {[%emt 0:00:00]} 3. Nf3 {[%emt 0:00:00]} Bb4+ {[%emt 0:00:08]} 4. Bd2 {[%emt 0:00:00]} a5 {[%emt 0:00:20]} 5. g3 {[%emt 0:00:37]} d6 {[%emt 0:00:36]} 6. Bg2 {[%emt 0:00:12]} Nbd7 {[%emt 0:00:35]} 7. O-O {[%emt 0:00:16]} e5 {[%emt 0:04:44]} 8. Bg5 {[%emt 0:01:15]} exd4 {[%emt 0:05:29]} 9. Nxd4 {[%emt 0:01:44]} O-O {[%emt 0:07:23]} 10. Qc2 {[%emt 0:20:23]} Bc5 {[%emt 0:15:45]} 11. Rd1 {[%emt 0:01:38]} h6 {[%emt 0:06:29]} 12. Bf4 {[%emt 0:00:24]} Bxd4 {[%emt 0:03:56]} 13. Rxd4 {[%emt 0:00:10]} Nc5 {[%emt 0:00:15]} 14. Rd1 {[%emt 0:05:17]} Re8 {[%emt 0:04:50]} 15. Nc3 {[%emt 0:04:41]} Qe7 {[%emt 0:20:52]} 16. e4 {[%emt 0:04:06]} Be6 {[%emt 0:06:11]} 17. Ne2 {[%emt 0:04:00]} Bf5 {[%emt 0:11:19]} 18. f3 {[%emt 0:02:33]} Be6 {[%emt 0:03:33]} 19. Re1 {[%emt 0:04:23]} Nfd7 {[%emt 0:00:44]} 20. Rad1 {[%emt 0:01:05]} Ne5 {[%emt 0:00:51]} 21. b3 {[%emt 0:02:08]} a4 {[%emt 0:01:02]} 22. Nd4 {[%emt 0:08:08]} axb3 {[%emt 0:01:06]} 23. axb3 {[%emt 0:00:09]} Ra6 {[%emt 0:01:42]} 24. b4 {[%emt 0:07:38]} Ncd7 {[%emt 0:00:57]} 25. c5 {[%emt 0:02:35]} dxc5 {[%emt 0:02:19]} 26. Nb5 {[%emt 0:02:44]} Rc6 {[%emt 0:01:14]} 27. Qb1 {[%emt 0:14:07]} cxb4 {[%emt 0:00:38]} 28. Nd4 {[%emt 0:00:11]} Ra6 {[%emt 0:00:27]} 29. Nf5 {[%emt 0:01:12]} Qf6 {[%emt 0:00:32]} 30. Qxb4 {[%emt 0:00:55]} Bxf5 {[%emt 0:00:34]} 31. exf5 {[%emt 0:00:27]} Raa8 {[%emt 0:00:26]} 32. Qxb7 {[%emt 0:02:10]} Nc5 {[%emt 0:00:30]} 33. Qxc7 {[%emt 0:01:08]} Ncd3 {[%emt 0:00:30]} 34. Bxe5 {[%emt 0:00:54]} Nxe5 {[%emt 0:00:30]} 35. f4 {[%emt 0:00:49]} Ng4 {[%emt 0:00:22]} 36. Rxe8+ {[%emt 0:07:54]} Rxe8 {[%emt 0:00:06]} 37. Qc6 {[%emt 0:00:17]} Re1+ {[%emt 0:01:03]} 38. Bf1 {[%emt 0:02:03]} Qxc6 {[%emt 0:00:12]} 39. Rxe1 {[%emt 0:00:06]} Qc5+ {[%emt 0:00:40]} 40. Kg2 {[%emt 0:00:00]} Qf2+ {[%emt 0:00:00]} 41. Kh3 {[%emt 0:00:00]} Qxe1 {[%emt 0:00:00]} 0-1

[Event "47th GRE-chT 2019"]
[Site "Patra"]
[Date "2019.07.05"]
[Round "5.28"]
[White "Georgakopoulos, Nikolaos K."]
[Black "Katopodis, Dimitrios"]
[Result "0-1"]
[ECO "B11"]
[WhiteElo "2032"]
[BlackElo "2279"]
[Annotator "NA RC"]
[PlyCount "84"]
[EventDate "2019.07.02"]
[EventCountry "GRE"]
[SourceTitle "playchess.com"]
[Source "ChessBase"]
[SourceQuality "1"]
[TimeControl "5400+30"]

1. e4 {[%emt 0:00:44]} c6 {[%emt 0:00:00]} 2. Nc3 {[%emt 0:00:11]} d5 {[%emt 0:00:00]} 3. Nf3 {[%emt 0:00:05]} Nf6 {[%emt 0:01:59]} 4. e5 {[%emt 0:00:06]} Ne4 {[%emt 0:01:42]} 5. d4 {[%emt 0:00:14]} Nxc3 {[%emt 0:00:09]} 6. bxc3 {[%emt 0:05:46]} c5 {[%emt 0:07:36]} 7. Be2 {[%emt 0:07:58]} Nc6 {[%emt 0:01:17]} 8. O-O {[%emt 0:02:25]} Bg4 {[%emt 0:04:43]} 9. Rb1 {[%emt 0:01:52]} Qc7 {[%emt 0:15:12]} 10. c4 {[%emt 0:06:39]} dxc4 {[%emt 0:00:57]} 11. d5 {[%emt 0:06:57]} O-O-O {[%emt 0:06:22]} 12. Bf4 {[%emt 0:05:18]} Be6 {[%emt 0:12:53]} 13. dxe6 {[%emt 0:00:08]} Rxd1 {[%emt 0:00:06]} 14. Rfxd1 {[%emt 0:07:07]} Nd8 {[%emt 0:17:35]} 15. Bxc4 {[%emt 0:11:15]} Nxe6 {[%emt 0:05:06]} 16. Bxe6+ {[%emt 0:00:02]} fxe6 {[%emt 0:00:06]} 17. Ng5 {[%emt 0:00:34]} Qc6 {[%emt 0:00:08]} 18. Nf7 {[%emt 0:00:11]} Rg8 {[%emt 0:07:34]} 19. Nd8 {[%emt 0:03:15]} Qa6 {[%emt 0:02:32]} 20. Nxb7 {[%emt 0:04:32]} g5 {[%emt 0:05:37]} 21. Nxc5 {[%emt 0:01:40]} Qc6 {[%emt 0:00:06]} 22. Be3 {[%emt 0:00:42]} Bg7 {[%emt 0:05:14]} 23. Nd3 {[%emt 0:02:42]} Rd8 {[%emt 0:01:15]} 24. Bxa7 {[%emt 0:05:21]} Rd7 {[%emt 0:01:04]} 25. Be3 {[%emt 0:00:18]} Rb7 {[%emt 0:02:35]} 26. Rb3 {[%emt 0:03:38]} h6 {[%emt 0:00:36]} 27. Ra3 {[%emt 0:02:13]} Qxc2 {[%emt 0:00:33]} 28. Rf1 {[%emt 0:00:39]} Rb1 {[%emt 0:00:30]} 29. Ne1 {[%emt 0:02:16]} Qc4 {[%emt 0:00:27]} 30. Ra5 {[%emt 0:00:39]} Qe2 {[%emt 0:00:28]} 31. Rc5+ {[%emt 0:00:05]} Kd7 {[%emt 0:00:28]} 32. Rc1 {[%emt 0:01:26]} Rxc1 {[%emt 0:00:02]} 33. Bxc1 {[%emt 0:00:47]} Bxe5 {[%emt 0:00:19]} 34. Nf3 {[%emt 0:00:14]} Bd6 {[%emt 0:01:01]} 35. a3 {[%emt 0:04:47]} Bc5 {[%emt 0:00:43]} 36. Nd2 {[%emt 0:01:09]} e5 {[%emt 0:00:32]} 37. Nb3 {[%emt 0:00:15]} Bd4 {[%emt 0:00:28]} 38. g3 {[%emt 0:00:47]} Qc2 {[%emt 0:00:33]} 39. Nd2 {[%emt 0:00:52]} e4 {[%emt 0:00:00]} 40. Kh1 {[%emt 0:00:00]} e3 {[%emt 0:00:00]} 41. fxe3 {[%emt 0:00:00]} Bxe3 {[%emt 0:00:00]} 42. Nf3 {[%emt 0:00:00]} Qe2 {[%emt 0:00:00]} 0-1

[Event "47th GRE-chT 2019"]
[Site "Patra"]
[Date "2019.07.05"]
[Round "5.29"]
[White "Abelakiotis, Stavros"]
[Black "Patrelakis, Evaggelos"]
[Result "1/2-1/2"]
[ECO "B80"]
[WhiteElo "1959"]
[BlackElo "2209"]
[Annotator "NA"]
[PlyCount "184"]
[EventDate "2019.07.02"]
[EventCountry "GRE"]
[SourceTitle "playchess.com"]
[Source "ChessBase"]
[SourceQuality "1"]
[TimeControl "5400+30"]

1. e4 {[%emt 0:00:00]} c5 {[%emt 0:00:00]} 2. Nf3 {[%emt 0:00:00]} d6 {[%emt 0:00:00]} 3. d4 {[%emt 0:00:13]} cxd4 {[%emt 0:00:00]} 4. Nxd4 {[%emt 0:00:10]} Nf6 {[%emt 0:00:09]} 5. Nc3 {[%emt 0:00:14]} a6 {[%emt 0:00:17]} 6. f3 {[%emt 0:00:14]} e6 {[%emt 0:00:17]} 7. Be3 {[%emt 0:00:30]} b5 {[%emt 0:00:11]} 8. Qd2 {[%emt 0:00:36]} Nbd7 {[%emt 0:00:57]} 9. g4 {[%emt 0:00:32]} Nb6 {[%emt 0:00:07]} 10. a4 {[%emt 0:02:41]} Nc4 {[%emt 0:00:25]} 11. Bxc4 {[%emt 0:00:09]} bxc4 {[%emt 0:00:02]} 12. g5 {[%emt 0:00:30]} Nd7 {[%emt 0:01:01]} 13. f4 {[%emt 0:00:49]} Qa5 {[%emt 0:10:47]} 14. O-O {[%emt 0:09:58]} Bb7 {[%emt 0:06:46]} 15. f5 {[%emt 0:13:38]} e5 {[%emt 0:03:30]} 16. Nde2 {[%emt 0:01:24]} Be7 {[%emt 0:09:28]} 17. Ng3 {[%emt 0:14:18]} Nc5 {[%emt 0:25:13]} 18. Rab1 {[%emt 0:19:32]} Qb4 {[%emt 0:05:41]} 19. f6 {[%emt 0:09:54]} gxf6 {[%emt 0:00:24]} 20. gxf6 {[%emt 0:00:08]} Bf8 {[%emt 0:00:35]} 21. b3 {[%emt 0:07:51]} cxb3 {[%emt 0:02:13]} 22. cxb3 {[%emt 0:00:14]} Rc8 {[%emt 0:05:18]} 23. Rfc1 {[%emt 0:03:48]} Rg8 {[%emt 0:02:54]} 24. Qe2 {[%emt 0:04:31]} Nxe4 {[%emt 0:08:11]} 25. Ncxe4 {[%emt 0:06:06]} Rxc1+ {[%emt 0:05:02]} 26. Rxc1 {[%emt 0:00:20]} Qxe4 {[%emt 0:00:16]} 27. Kf1 {[%emt 0:01:19]} Qd5 {[%emt 0:02:02]} 28. Rc7 {[%emt 0:03:45]} Rg6 {[%emt 0:00:59]} 29. Qc2 {[%emt 0:00:33]} Rxf6+ {[%emt 0:01:52]} 30. Ke1 {[%emt 0:00:09]} Be7 {[%emt 0:02:27]} 31. Rxe7+ {[%emt 0:00:50]} Kxe7 {[%emt 0:00:32]} 32. Qc7+ {[%emt 0:00:20]} Ke6 {[%emt 0:00:56]} 33. Bg5 {[%emt 0:00:33]} e4 {[%emt 0:02:48]} 34. Bxf6 {[%emt 0:00:37]} Kxf6 {[%emt 0:00:01]} 35. Qd8+ {[%emt 0:00:28]} Kg7 {[%emt 0:00:22]} 36. Qh4 {[%emt 0:00:32]} Qa5+ {[%emt 0:01:11]} 37. Ke2 {[%emt 0:00:17]} h6 {[%emt 0:01:12]} 38. Nh5+ {[%emt 0:00:24]} Kf8 {[%emt 0:00:08]} 39. Nf6 {[%emt 0:00:48]} Qf5 {[%emt 0:03:13]} 40. Qxh6+ {[%emt 0:00:00]} Ke7 {[%emt 0:00:00]} 41. Ng8+ {[%emt 0:00:00]} Kd7 {[%emt 0:00:00]} 42. Nf6+ {[%emt 0:00:00]} Kc6 {[%emt 0:00:00]} 43. Qc1+ {[%emt 0:00:00]} Kb6 {[%emt 0:00:00]} 44. a5+ {[%emt 0:00:00]} Ka7 {[%emt 0:00:00]} 45. Qg1+ {[%emt 0:00:00]} Kb8 {[%emt 0:00:00]} 46. Qg8+ {[%emt 0:00:00]} Bc8 {[%emt 0:00:00]} 47. Qd8 {[%emt 0:00:00]} Qf3+ {[%emt 0:00:00]} 48. Ke1 {[%emt 0:00:00]} Qh1+ {[%emt 0:00:00]} 49. Ke2 {[%emt 0:00:00]} Qxh2+ {[%emt 0:00:00]} 50. Ke3 {[%emt 0:00:00]} Qh3+ {[%emt 0:00:00]} 51. Kxe4 {[%emt 0:00:00]} Qxb3 {[%emt 0:00:00]} 52. Qxd6+ {[%emt 0:00:35]} Ka8 {[%emt 0:00:00]} 53. Qd8 {[%emt 0:02:18]} Qb8 {[%emt 0:03:45]} 54. Kd4 {[%emt 0:01:21]} Ka7 {[%emt 0:02:08]} 55. Qe7+ {[%emt 0:01:15]} Bb7 {[%emt 0:00:08]} 56. Kc5 {[%emt 0:02:52]} Qg3 {[%emt 0:01:24]} 57. Qd8 {[%emt 0:00:28]} Qc3+ {[%emt 0:01:14]} 58. Kd6 {[%emt 0:00:23]} Qa3+ {[%emt 0:00:31]} 59. Kd7 {[%emt 0:00:39]} Qe3 {[%emt 0:01:19]} 60. Kd6 {[%emt 0:00:41]} Qe6+ {[%emt 0:01:05]} 61. Kc5 {[%emt 0:00:05]} Qe5+ {[%emt 0:00:11]} 62. Kc4 {[%emt 0:00:48]} Qb5+ {[%emt 0:00:23]} 63. Kc3 {[%emt 0:00:15]} Qc5+ {[%emt 0:00:12]} 64. Kb3 {[%emt 0:00:25]} Qe3+ {[%emt 0:00:32]} 65. Kb4 {[%emt 0:00:15]} Qf2 {[%emt 0:00:46]} 66. Kc3 {[%emt 0:00:47]} Qe1+ {[%emt 0:00:19]} 67. Kb3 {[%emt 0:00:39]} Qb1+ {[%emt 0:00:44]} 68. Kc3 {[%emt 0:00:07]} Qc1+ {[%emt 0:00:08]} 69. Kb3 {[%emt 0:00:05]} Qc5 {[%emt 0:00:07]} 70. Kb2 {[%emt 0:01:30]} Qb4+ {[%emt 0:00:12]} 71. Ka2 {[%emt 0:00:29]} Qc4+ {[%emt 0:01:09]} 72. Kb2 {[%emt 0:00:13]} Qe2+ {[%emt 0:00:13]} 73. Kb3 {[%emt 0:00:15]} Qe3+ {[%emt 0:00:20]} 74. Kb4 {[%emt 0:00:23]} Qg1 {[%emt 0:00:13]} 75. Kc3 {[%emt 0:00:24]} Qg3+ {[%emt 0:00:44]} 76. Kb2 {[%emt 0:00:17]} Qb8 {[%emt 0:00:21]} 77. Qd4+ {[%emt 0:01:25]} Ka8 {[%emt 0:00:01]} 78. Nd7 {[%emt 0:00:39]} Qh2+ {[%emt 0:00:08]} 79. Ka1 {[%emt 0:00:21]} Qh1+ {[%emt 0:00:09]} 80. Kb2 {[%emt 0:00:25]} Qg2+ {[%emt 0:00:21]} 81. Ka3 {[%emt 0:00:20]} Qg3+ {[%emt 0:01:33]} 82. Kb2 {[%emt 0:00:17]} Qg2+ {[%emt 0:00:46]} 83. Ka3 {[%emt 0:00:06]} Qf3+ {[%emt 0:01:25]} 84. Kb4 {[%emt 0:00:33]} Bc8 {[%emt 0:00:45]} 85. Nb6+ {[%emt 0:00:44]} Kb7 {[%emt 0:00:09]} 86. Nxc8 {[%emt 0:01:08]} Kxc8 {[%emt 0:00:24]} 87. Qc5+ {[%emt 0:00:21]} Kb8 {[%emt 0:01:07]} 88. Qd6+ {[%emt 0:00:11]} Kc8 {[%emt 0:00:19]} 89. Qc5+ {[%emt 0:00:06]} Kb8 {[%emt 0:00:33]} 90. Qd6+ {[%emt 0:00:06]} Kc8 {[%emt 0:00:19]} 91. Qc5+ {[%emt 0:00:05]} Kb8 {[%emt 0:00:14]} 92. Qd6+ {[%emt 0:00:12]} Kc8 {[%emt 0:00:55]} 1/2-1/2